fUST/lending_fUST_20250302
["ID","MTS","AMOUNT","RATE_DAILY","PERIOD"]
[355011824,1740867039926,-218.81770486,0.00024657,2]
[355011825,1740867039936,-1417.5,0.00024657,2]
[355011826,1740867039946,-500.0,0.00024657,2]
[355011827,1740867040032,-411.68283425,0.00024657,2]
[355011828,1740867040043,-500.0,0.00024657,2]
[355011829,1740867040052,-505.56746213,0.00024657,2]
[355011830,1740867040063,-500.0,0.00024657,2]
[355011831,1740867040072,-500.0,0.00024657,2]
[355011832,1740867040081,-500.0,0.00024657,2]
[355011833,1740867040090,-200.0,0.00024657,2]
[355011834,1740867040100,-500.0,0.00024657,2]
[355011835,1740867040109,-653.62,0.00024657,2]
[355011836,1740867040118,-947.5,0.00024657,2]
[355011837,1740867040127,-500.0,0.00024657,2]
[355011839,1740867040137,-1482.24,0.00024657,2]
[355011840,1740867040147,-500.0,0.00024657,2]
[355011841,1740867040157,-568.83,0.00024657,2]
[355011842,1740867040166,-500.0,0.00024657,2]
[355011843,1740867040175,-500.0,0.00024657,2]
[355011844,1740867040185,-500.0,0.00024657,2]
[355011845,1740867040194,-500.0,0.00024657,2]
[355011846,1740867040204,-500.0,0.00024657,2]
[355011847,1740867040214,-554.08,0.00024657,2]
[355011848,1740867040224,-500.0,0.00024657,2]
[355011849,1740867040233,-871.44,0.00024657,2]
[355011850,1740867040243,-580.95,0.00024657,2]
[355011851,1740867040253,-500.0,0.00024657,2]
[355011852,1740867040263,-500.39,0.00024657,2]
[355011853,1740867040272,-500.0,0.00024657,2]
[355011854,1740867040281,-500.0,0.00024657,2]
[355011855,1740867040291,-2364.27,0.00024657,2]
[355011856,1740867040301,-513.91,0.00024657,2]
[355011857,1740867040311,-1830.98,0.00024657,2]
[355011859,1740867040320,-500.0,0.00024657,2]
[355011861,1740867040330,-500.0,0.00024657,2]
[355011863,1740867040340,-500.0,0.00024657,2]
[355011865,1740867040349,-1033.19,0.00024657,2]
[355011867,1740867040359,-1463.82,0.00024657,2]
[355011869,1740867040368,-500.0,0.00024657,2]
[355011871,1740867040378,-561.22,0.00024657,2]
[355011873,1740867040387,-500.0,0.00024657,2]
[355011875,1740867040397,-1615.94,0.00024657,2]
[355011877,1740867040407,-500.0,0.00024657,2]
[355011879,1740867040416,-500.0,0.00024657,2]
[355011881,1740867040427,-500.0,0.00024657,2]
[355011883,1740867040436,-1006.71,0.00024657,2]
[355011885,1740867040446,-500.0,0.00024657,2]
[355011887,1740867040456,-500.0,0.00024657,2]
[355011889,1740867040465,-500.0,0.00024657,2]
[355011891,1740867040478,-909.74,0.00024657,2]
[355011893,1740867040495,-500.0,0.00024657,2]
[355011895,1740867040505,-906.85,0.00024657,2]
[355011897,1740867040514,-500.87,0.00024657,2]
[355011899,1740867040524,-500.0,0.00024657,2]
[355011901,1740867040534,-500.0,0.00024657,2]
[355011903,1740867040543,-500.0,0.00024657,2]
[355011905,1740867040553,-500.0,0.00024657,2]
[355011907,1740867040562,-500.0,0.00024657,2]
[355011909,1740867040571,-1490.22,0.00024657,2]
[355011910,1740867040581,-702.35,0.00024657,2]
[355011912,1740867040590,-581.49533621,0.00024657,2]
[355011914,1740867040600,-500.0,0.00024657,2]
[355011915,1740867040609,-500.0,0.00024657,2]
[355011916,1740867040620,-809.9,0.00024657,2]
[355011917,1740867040630,-500.0,0.00024657,2]
[355011918,1740867040640,-568.11,0.00024657,2]
[355011919,1740867040650,-500.0,0.00024657,2]
[355011920,1740867040660,-500.0,0.00024657,2]
[355011921,1740867040669,-500.0,0.00024657,2]
[355011922,1740867040679,-500.0,0.00024657,2]
[355011923,1740867040688,-500.0,0.00024657,2]
[355011924,1740867040697,-553.97,0.00024657,2]
[355011925,1740867040707,-2260.11,0.00024657,2]
[355011926,1740867040716,-1253.35,0.00024657,2]
[355011927,1740867040726,-500.0,0.00024657,2]
[355011928,1740867040735,-1047.34,0.00024657,2]
[355011929,1740867040745,-365.78196176,0.00024657,2]
[355011930,1740867040754,-500.0,0.00024657,2]
[355011931,1740867040763,-500.0,0.00024657,2]
[355011932,1740867040772,-500.0,0.00024657,2]
[355011933,1740867040782,-911.23,0.00024657,2]
[355011934,1740867040791,-500.0,0.00024657,2]
[355011935,1740867040801,-500.0,0.00024657,2]
[355011936,1740867040810,-778.92,0.00024657,2]
[355011937,1740867040819,-500.0,0.00024657,2]
[355011938,1740867040829,-500.0,0.00024657,2]
[355011939,1740867040839,-500.0,0.00024657,2]
[355011940,1740867040848,-762.38,0.00024657,2]
[355011941,1740867040857,-500.0,0.00024657,2]
[355011942,1740867040867,-500.0,0.00024657,2]
[355011943,1740867040877,-776.54,0.00024657,2]
[355011944,1740867040886,-675.22,0.00024657,2]
[355011945,1740867040895,-500.0,0.00024657,2]
[355011946,1740867040905,-500.0,0.00024657,2]
[355011947,1740867040915,-845.87,0.00024657,2]
[355011948,1740867040928,-500.0,0.00024657,2]
[355011949,1740867040937,-500.0,0.00024657,2]
[355011950,1740867040947,-500.0,0.00024657,2]
[355011951,1740867040957,-398.54965519,0.00024657,2]
[355011952,1740867040967,-709.62,0.00024657,2]
[355011953,1740867040976,-651.19,0.00024657,2]
[355011954,1740867040985,-500.0,0.00024657,2]
[355011955,1740867040995,-500.0,0.00024657,2]
[355011956,1740867041005,-500.0,0.00024657,2]
[355011957,1740867041015,-500.0,0.00024657,2]
[355011958,1740867041025,-516.76,0.00024657,2]
[355011959,1740867041034,-500.0,0.00024657,2]
[355011960,1740867041043,-1310.99,0.00024657,2]
[355011961,1740867041053,-1724.5,0.00024657,2]
[355011962,1740867041063,-500.0,0.00024657,2]
[355011963,1740867041072,-500.0,0.00024657,2]
[355011964,1740867041081,-500.0,0.00024657,2]
[355011965,1740867041091,-1141.1,0.00024657,2]
[355011966,1740867041100,-674.63,0.00024657,2]
[355011967,1740867041109,-500.0,0.00024657,2]
[355011968,1740867041118,-500.0,0.00024657,2]
[355011969,1740867041127,-500.0,0.00024657,2]
[355011970,1740867041136,-917.78,0.00024657,2]
[355011971,1740867041146,-500.0,0.00024657,2]
[355011972,1740867041156,-1499.1,0.00024657,2]
[355011973,1740867041165,-3356.12,0.00024657,2]
[355011974,1740867041174,-1618.59,0.00024657,2]
[355011975,1740867041183,-609.06,0.00024657,2]
[355011976,1740867041192,-573.86,0.00024657,2]
[355011977,1740867041202,-500.0,0.00024657,2]
[355011978,1740867041213,-500.0,0.00024657,2]
[355011979,1740867041223,-500.0,0.00024657,2]
[355011980,1740867041233,-530.06243855,0.00024657,2]
[355011981,1740867041243,-900.81,0.00024657,2]
[355011982,1740867041254,-500.0,0.00024657,2]
[355011983,1740867041263,-931.99,0.00024657,2]
[355011984,1740867041272,-502.36,0.00024657,2]
[355011985,1740867041281,-4081.04,0.00024657,2]
[355011986,1740867041291,-500.0,0.00024657,2]
[355011987,1740867041300,-719.82,0.00024657,2]
[355011988,1740867041310,-1674.84,0.00024657,2]
[355011989,1740867041320,-500.0,0.00024657,2]
[355011990,1740867041329,-500.0,0.00024657,2]
[355011991,1740867041339,-500.0,0.00024657,2]
[355011992,1740867041348,-500.0,0.00024657,2]
[355011993,1740867041358,-500.0,0.00024657,2]
[355011994,1740867041367,-500.0,0.00024657,2]
[355011995,1740867041376,-500.0,0.00024657,2]
[355011996,1740867041385,-1110.79,0.00024657,2]
[355011997,1740867041394,-322.21403355,0.00024657,2]
[355011998,1740867041403,-510.6,0.00024657,2]
[355011999,1740867041413,-500.0,0.00024657,2]
[355012000,1740867041422,-571.4,0.00024657,2]
[355012001,1740867041432,-1207.12,0.00024657,2]
[355012002,1740867041441,-500.0,0.00024657,2]
[355012003,1740867041450,-155488.07,0.00024657,2]
[355012004,1740867041460,-500.0,0.00024657,2]
[355012005,1740867041469,-500.0,0.00024657,2]
[355012006,1740867041479,-500.0,0.00024657,2]
[355012007,1740867041489,-872.64,0.00024657,2]
[355012008,1740867041498,-8256.39,0.00024657,2]
[355012009,1740867041507,-1664.37,0.00024657,2]
[355012010,1740867041516,-500.0,0.00024657,2]
[355012011,1740867041526,-732.78,0.00024657,2]
[355012012,1740867041535,-500.0,0.00024657,2]
[355012013,1740867041544,-500.0,0.00024657,2]
[355012014,1740867041554,-500.0,0.00024657,2]
[355012015,1740867041563,-3121.24,0.00024657,2]
[355012016,1740867041574,-500.0,0.00024657,2]
[355012017,1740867041583,-500.0,0.00024657,2]
[355012018,1740867041592,-500.0,0.00024657,2]
[355012019,1740867041602,-500.0,0.00024657,2]
[355012020,1740867041611,-500.0,0.00024657,2]
[355012021,1740867041620,-500.0,0.00024657,2]
[355012022,1740867041630,-2141.51,0.00024657,2]
[355012023,1740867041639,-659.35,0.00024657,2]
[355012024,1740867041648,-500.0,0.00024657,2]
[355012025,1740867041658,-500.0,0.00024657,2]
[355012026,1740867041667,-500.0,0.00024657,2]
[355012027,1740867041676,-1105.18,0.00024657,2]
[355012028,1740867041685,-1066.22,0.00024657,2]
[355012029,1740867041694,-1727.54,0.00024657,2]
[355012030,1740867041703,-500.0,0.00024657,2]
[355012031,1740867041712,-500.0,0.00024657,2]
[355012032,1740867041721,-500.0,0.00024657,2]
[355012033,1740867041731,-500.0,0.00024657,2]
[355012034,1740867041740,-511.11621881,0.00024657,2]
[355012035,1740867041749,-3947.48,0.00024657,2]
[355012036,1740867041759,-500.0,0.00024657,2]
[355012037,1740867041768,-500.0,0.00024657,2]
[355012038,1740867041777,-985.74,0.00024657,2]
[355012039,1740867041787,-1175.04,0.00024657,2]
[355012040,1740867041796,-297.94138301,0.00024657,2]
[355012041,1740867041805,-500.0,0.00024657,2]
[355012042,1740867041815,-500.0,0.00024657,2]
[355012043,1740867041824,-500.0,0.00024657,2]
[355012044,1740867041834,-6489.64,0.00024657,2]
[355012045,1740867041843,-1119.22,0.00024657,2]
[355012046,1740867041852,-500.0,0.00024657,2]
[355012047,1740867041862,-320.22280286,0.00024657,2]
[355012048,1740867041872,-910.66,0.00024657,2]
[355012049,1740867041881,-500.0,0.00024657,2]
[355012050,1740867041890,-1052.15,0.00024657,2]
[355012051,1740867041899,-500.0,0.00024657,2]
[355012052,1740867041909,-740.18,0.00024657,2]
[355012053,1740867041921,-9445.83,0.00024657,2]
[355012054,1740867041930,-500.0,0.00024657,2]
[355012055,1740867041939,-500.0,0.00024657,2]
[355012056,1740867041949,-663.61,0.00024657,2]
[355012057,1740867041958,-27417.35,0.00024657,2]
[355012058,1740867041968,-608.67,0.00024657,2]
[355012059,1740867041977,-500.0,0.00024657,2]
[355012060,1740867041987,-500.0,0.00024657,2]
[355012061,1740867041997,-657.9,0.00024657,2]
[355012062,1740867042007,-1227.4,0.00024657,2]
[355012063,1740867042017,-500.0,0.00024657,2]
[355012064,1740867042026,-500.0,0.00024657,2]
[355012065,1740867042036,-500.0,0.00024657,2]
[355012066,1740867042045,-1640.25,0.00024657,2]
[355012067,1740867042055,-500.0,0.00024657,2]
[355012068,1740867042064,-500.0,0.00024657,2]
[355012069,1740867042074,-500.0,0.00024657,2]
[355012070,1740867042084,-500.0,0.00024657,2]
[355012071,1740867042093,-1960.2,0.00024657,2]
[355012072,1740867042103,-500.0,0.00024657,2]
[355012073,1740867042113,-515.26693993,0.00024657,2]
[355012074,1740867042123,-715.55,0.00024657,2]
[355012075,1740867042133,-500.0,0.00024657,2]
[355012076,1740867042142,-2607.33,0.00024657,2]
[355012077,1740867042151,-1221.89,0.00024657,2]
[355012078,1740867042160,-509.6681462,0.00024657,2]
[355012079,1740867042169,-500.0,0.00024657,2]
[355012080,1740867042179,-760.91,0.00024657,2]
[355012081,1740867042188,-500.0,0.00024657,2]
[355012082,1740867042198,-500.0,0.00024657,2]
[355012083,1740867042207,-525.19719281,0.00024657,2]
[355012084,1740867042217,-500.0,0.00024657,2]
[355012085,1740867042227,-6002.63,0.00024657,2]
[355012086,1740867042236,-500.0,0.00024657,2]
[355012087,1740867042246,-500.0,0.00024657,2]
[355012088,1740867042256,-1704.63,0.00024657,2]
[355012089,1740867042265,-1000.0,0.00024657,5]
[355012090,1740867042275,-500.0,0.00024657,2]
[355012091,1740867042284,-500.0,0.00024657,2]
[355012092,1740867042295,-500.0,0.00024657,2]
[355012093,1740867042304,-610.90923007,0.00024657,2]
[355012094,1740867042313,-524.79,0.00024657,2]
[355012095,1740867042322,-500.0,0.00024657,2]
[355012096,1740867042332,-2627.99,0.00024657,2]
[355012097,1740867042342,-500.0,0.00024657,2]
[355012098,1740867042352,-941.24,0.00024657,2]
[355012099,1740867042361,-500.0,0.00024657,2]
[355012100,1740867042370,-5167.96,0.00024657,2]
[355012101,1740867042380,-329.67957877,0.00024657,2]
[355012102,1740867042390,-528.49547566,0.00024657,2]
[355012103,1740867042399,-500.0,0.00024657,2]
[355012104,1740867042408,-500.0,0.00024657,2]
[355012105,1740867042418,-2817.26,0.00024657,2]
[355012106,1740867042427,-500.0,0.00024657,2]
[355012107,1740867042436,-500.67738153,0.00024657,2]
[355012108,1740867042445,-500.0,0.00024657,2]
[355012109,1740867042455,-616.35,0.00024657,2]
[355012110,1740867042464,-8959.13,0.00024657,2]
[355012111,1740867042474,-1125.71,0.00024657,2]
[355012112,1740867042483,-5391.59,0.00024657,2]
[355012113,1740867042493,-263.33209096,0.00024657,2]
[355012114,1740867042502,-500.0,0.00024657,2]
[355012115,1740867042512,-500.0,0.00024657,2]
[355012116,1740867042521,-897.52,0.00024657,2]
[355012117,1740867042530,-837.71,0.00024657,2]
[355012118,1740867042540,-500.0,0.00024657,2]
[355012119,1740867042549,-500.0,0.00024657,2]
[355012120,1740867042559,-500.0,0.00024657,2]
[355012121,1740867042568,-860.71,0.00024657,2]
[355012122,1740867042578,-500.0,0.00024657,2]
[355012123,1740867042587,-500.0,0.00024657,2]
[355012124,1740867042596,-500.0,0.00024657,2]
[355012125,1740867042606,-500.0,0.00024657,2]
[355012126,1740867042616,-507.49376202,0.00024657,2]
[355012128,1740867042625,-3082.37,0.00024657,2]
[355012130,1740867042635,-11040.3,0.00024657,2]
[355012131,1740867042644,-962.07,0.00024657,2]
[355012134,1740867042655,-500.0,0.00024657,2]
[355012136,1740867042665,-500.0,0.00024657,2]
[355012138,1740867042674,-500.0,0.00024657,2]
[355012140,1740867042684,-500.0,0.00024657,2]
[355012142,1740867042693,-668.39,0.00024657,2]
[355012144,1740867042702,-500.0,0.00024657,2]
[355012146,1740867042712,-500.0,0.00024657,2]
[355012148,1740867042721,-1080.93,0.00024657,2]
[355012150,1740867042731,-500.0,0.00024657,2]
[355012154,1740867042747,-1380.79,0.00024657,2]
[355012157,1740867042757,-811.26,0.00024657,2]
[355012158,1740867042766,-892.17,0.00024657,2]
[355012161,1740867042775,-500.0,0.00024657,2]
[355012164,1740867042785,-500.0,0.00024657,2]
[355012167,1740867042795,-500.0,0.00024657,2]
[355012170,1740867042806,-500.0,0.00024657,2]
[355012173,1740867042815,-1091.39,0.00024657,2]
[355012176,1740867042825,-500.0,0.00024657,2]
[355012178,1740867042834,-1552.34,0.00024657,2]
[355012180,1740867042843,-3129.34,0.00024657,2]
[355012183,1740867042854,-500.0,0.00024657,2]
[355012185,1740867042863,-1703.07,0.00024657,2]
[355012187,1740867042874,-500.0,0.00024657,2]
[355012189,1740867042884,-1892.4,0.00024657,2]
[355012191,1740867042894,-500.0,0.00024657,2]
[355012193,1740867042904,-500.0,0.00024658,2]
[355012195,1740867042915,-500.0,0.00024658,2]
[355012197,1740867042927,-500.0,0.00024658,2]
[355012199,1740867042937,-477.10633626,0.00024658,2]
[355012200,1740867042947,-2016.62804774,0.00024671,2]
[355012201,1740867042956,-500.0,0.00024673,2]
[355012202,1740867042966,-500.0,0.00024673,2]
[355012203,1740867042976,-500.0,0.00024673,2]
[355012204,1740867042986,-502.84791567,0.00024673,2]
[355012205,1740867042997,-500.0,0.00024673,2]
[355012206,1740867043007,-564.29048931,0.00024673,2]
[355012207,1740867043016,-500.0,0.00024673,2]
[355012208,1740867043026,-500.0,0.00024673,2]
[355012209,1740867043036,-500.0,0.00024673,2]
[355012210,1740867043046,-500.0,0.00024673,2]
[355012211,1740867043055,-500.0,0.00024673,2]
[355012212,1740867043065,-500.0,0.00024673,2]
[355012213,1740867043075,-500.0,0.00024673,2]
[355012214,1740867043085,-500.0,0.00024673,2]
[355012215,1740867043094,-339.57,0.000247,7]
[355012217,1740867043104,-1473.02367677,0.00024724,2]
[355012219,1740867043114,-355.7160855,0.00024795,2]
[355012221,1740867043124,-157.41503691,0.00024822,2]
[355012223,1740867043134,-220.38105165,0.00024822,2]
[355012225,1740867043144,-162.85000331,0.00024831,2]
[355012226,1740867043154,-25000.0,0.00024931,2]
[355012227,1740867043163,-500.0,0.00024931,2]
[355012228,1740867043173,-938.68,0.00024931,2]
[355012229,1740867043184,-500.0,0.00024931,2]
[355012230,1740867043193,-500.0,0.00024931,2]
[355012231,1740867043204,-500.0,0.00024931,2]
[355012232,1740867043213,-500.0,0.00024931,2]
[355012233,1740867043223,-500.0,0.00024931,2]
[355012234,1740867043233,-500.0,0.00024931,2]
[355012235,1740867043243,-500.0,0.00024931,2]
[355012236,1740867043252,-999.27,0.00024931,2]
[355012237,1740867043263,-500.0,0.00024931,2]
[355012238,1740867043273,-500.0,0.00024931,2]
[355012239,1740867043282,-500.0,0.00024931,2]
[355012240,1740867043292,-1245.59,0.00024931,2]
[355012241,1740867043302,-500.0,0.00024931,2]
[355012242,1740867043311,-602.9,0.00024931,2]
[355012243,1740867043322,-524.36321022,0.00024931,2]
[355012244,1740867043332,-726.93,0.00024931,2]
[355012245,1740867043342,-500.0,0.00024931,2]
[355012246,1740867043352,-500.0,0.00024931,2]
[355012247,1740867043362,-500.0,0.00024931,2]
[355012248,1740867043372,-500.0,0.00024931,2]
[355012249,1740867043382,-500.0,0.00024931,2]
[355012250,1740867043393,-667.7,0.00024931,2]
[355012251,1740867043402,-500.0,0.00024931,2]
[355012252,1740867043412,-500.0,0.00024931,2]
[355012253,1740867043422,-580.46,0.00024931,2]
[355012254,1740867043432,-500.0,0.00024931,2]
[355012255,1740867043443,-500.0,0.00024931,2]
[355012256,1740867043453,-500.0,0.00024931,2]
[355012257,1740867043463,-500.0,0.00024931,2]
[355012258,1740867043474,-500.0,0.00024931,2]
[355012259,1740867043484,-500.0,0.00024931,2]
[355012260,1740867043495,-500.0,0.00024931,2]
[355012262,1740867043506,-500.0,0.00024931,2]
[355012264,1740867043516,-704.32,0.00024931,2]
[355012266,1740867043527,-500.0,0.00024931,2]
[355012268,1740867043537,-500.0,0.00024931,2]
[355012271,1740867043547,-500.0,0.00024931,2]
[355012275,1740867043557,-500.0,0.00024931,2]
[355012277,1740867043567,-500.0,0.00024931,2]
[355012278,1740867043578,-500.0,0.00024931,2]
[355012279,1740867043588,-859.52,0.00024931,2]
[355012280,1740867043598,-500.0,0.00024931,2]
[355012281,1740867043608,-500.0,0.00024931,2]
[355012282,1740867043618,-500.0,0.00024931,2]
[355012283,1740867043628,-586.13,0.00024931,2]
[355012284,1740867043638,-500.0,0.00024931,2]
[355012285,1740867043647,-500.0,0.00024931,2]
[355012286,1740867043657,-500.0,0.00024931,2]
[355012287,1740867043667,-500.0,0.00024931,2]
[355012288,1740867043677,-500.0,0.00024931,2]
[355012289,1740867043687,-542.65117371,0.00024931,2]
[355012290,1740867043696,-929.79,0.00024931,2]
[355012291,1740867043706,-932.58,0.00024931,2]
[355012292,1740867043716,-500.0,0.00024931,2]
[355012293,1740867043726,-500.0,0.00024931,2]
[355012294,1740867043736,-500.0,0.00024931,2]
[355012295,1740867043747,-373.60693392,0.00024931,2]
[355012296,1740867043756,-500.0,0.00024931,2]
[355012297,1740867043766,-500.0,0.00024931,2]
[355012298,1740867043776,-649.09,0.00024931,2]
[355012299,1740867043786,-594.09,0.00024931,2]
[355012300,1740867043796,-766.27,0.00024931,2]
[355012301,1740867043806,-500.0,0.00024931,2]
[355012302,1740867043816,-1352.22,0.00024931,2]
[355012303,1740867043827,-791.71,0.00024931,2]
[355012304,1740867043837,-500.0,0.00024931,2]
[355012305,1740867043847,-1360.2,0.00024931,2]
[355012306,1740867043858,-500.0,0.00024931,2]
[355012307,1740867043867,-809.89,0.00024931,2]
[355012308,1740867043877,-500.0,0.00024931,2]
[355012309,1740867043887,-500.0,0.00024931,2]
[355012310,1740867043897,-500.0,0.00024931,2]
[355012311,1740867043906,-500.0,0.00024931,2]
[355012312,1740867043916,-593.7,0.00024931,2]
[355012313,1740867043929,-596.29,0.00024931,2]
[355012314,1740867043938,-500.0,0.00024931,2]
[355012315,1740867043949,-1417.5,0.00024931,2]
[355012316,1740867043959,-500.0,0.00024931,2]
[355012317,1740867043971,-500.0,0.00024931,2]
[355012318,1740867043981,-500.0,0.00024931,2]
[355012319,1740867043991,-500.0,0.00024931,2]
[355012320,1740867044002,-500.0,0.00024931,2]
[355012321,1740867044013,-500.0,0.00024931,2]
[355012322,1740867044023,-653.62,0.00024931,2]
[355012323,1740867044032,-947.5,0.00024931,2]
[355012324,1740867044042,-1482.24,0.00024931,2]
[355012325,1740867044052,-500.0,0.00024931,2]
[355012326,1740867044062,-568.83,0.00024931,2]
[355012327,1740867044072,-500.0,0.00024931,2]
[355012328,1740867044082,-500.0,0.00024931,2]
[355012329,1740867044092,-500.0,0.00024931,2]
[355012330,1740867044102,-500.0,0.00024931,2]
[355012331,1740867044112,-500.0,0.00024931,2]
[355012332,1740867044121,-871.44,0.00024931,2]
[355012333,1740867044130,-580.95,0.00024931,2]
[355012334,1740867044140,-500.0,0.00024931,2]
[355012335,1740867044150,-500.39,0.00024931,2]
[355012336,1740867044159,-500.0,0.00024931,2]
[355012337,1740867044169,-500.0,0.00024931,2]
[355012338,1740867044179,-2364.27,0.00024931,2]
[355012339,1740867044189,-513.91,0.00024931,2]
[355012340,1740867044199,-1830.98,0.00024931,2]
[355012341,1740867044208,-500.0,0.00024931,2]
[355012342,1740867044218,-500.0,0.00024931,2]
[355012343,1740867044228,-500.0,0.00024931,2]
[355012344,1740867044239,-1033.19,0.00024931,2]
[355012345,1740867044249,-1463.82,0.00024931,2]
[355012346,1740867044258,-500.0,0.00024931,2]
[355012347,1740867044268,-561.22,0.00024931,2]
[355012348,1740867044278,-500.0,0.00024931,2]
[355012349,1740867044287,-1615.94,0.00024931,2]
[355012350,1740867044297,-500.0,0.00024931,2]
[355012351,1740867044307,-500.0,0.00024931,2]
[355012352,1740867044316,-1006.71,0.00024931,2]
[355012353,1740867044326,-500.0,0.00024931,2]
[355012354,1740867044336,-500.0,0.00024931,2]
[355012355,1740867044346,-909.74,0.00024931,2]
[355012356,1740867044356,-500.0,0.00024931,2]
[355012357,1740867044366,-906.85,0.00024931,2]
[355012358,1740867044376,-500.87,0.00024931,2]
[355012359,1740867044386,-500.0,0.00024931,2]
[355012360,1740867044396,-500.0,0.00024931,2]
[355012361,1740867044407,-500.0,0.00024931,2]
[355012362,1740867044417,-1490.22,0.00024931,2]
[355012363,1740867044427,-702.35,0.00024931,2]
[355012364,1740867044439,-809.9,0.00024931,2]
[355012365,1740867044658,-500.0,0.00024931,2]
[355012366,1740867044670,-568.11,0.00024931,2]
[355012367,1740867044681,-500.0,0.00024931,2]
[355012368,1740867044691,-500.0,0.00024931,2]
[355012369,1740867044701,-500.0,0.00024931,2]
[355012370,1740867044711,-500.0,0.00024931,2]
[355012371,1740867044722,-553.97,0.00024931,2]
[355012372,1740867044732,-2260.11,0.00024931,2]
[355012373,1740867044742,-1253.35,0.00024931,2]
[355012374,1740867044752,-1047.34,0.00024931,2]
[355012375,1740867044762,-500.0,0.00024931,2]
[355012376,1740867044773,-500.0,0.00024931,2]
[355012377,1740867044783,-911.23,0.00024931,2]
[355012378,1740867044794,-500.0,0.00024931,2]
[355012379,1740867044804,-500.0,0.00024931,2]
[355012380,1740867044814,-778.92,0.00024931,2]
[355012381,1740867044827,-500.0,0.00024931,2]
[355012382,1740867044838,-500.0,0.00024931,2]
[355012383,1740867044848,-762.38,0.00024931,2]
[355012384,1740867044859,-523.7105927,0.00024931,2]
[355012385,1740867044870,-776.54,0.00024931,2]
[355012386,1740867044880,-675.22,0.00024931,2]
[355012387,1740867044890,-500.0,0.00024931,2]
[355012388,1740867044901,-500.0,0.00024931,2]
[355012389,1740867044911,-845.87,0.00024931,2]
[355012390,1740867044924,-500.0,0.00024931,2]
[355012391,1740867044934,-500.0,0.00024931,2]
[355012392,1740867044945,-500.0,0.00024931,2]
[355012393,1740867044955,-709.62,0.00024931,2]
[355012394,1740867044966,-651.19,0.00024931,2]
[355012395,1740867044976,-500.0,0.00024931,2]
[355012396,1740867044986,-500.0,0.00024931,2]
[355012397,1740867044996,-500.0,0.00024931,2]
[355012398,1740867045009,-516.76,0.00024931,2]
[355012399,1740867045019,-500.0,0.00024931,2]
[355012400,1740867045030,-1310.99,0.00024931,2]
[355012401,1740867045040,-1724.5,0.00024931,2]
[355012402,1740867045051,-500.0,0.00024931,2]
[355012403,1740867045061,-500.0,0.00024931,2]
[355012404,1740867045075,-500.0,0.00024931,2]
[355012405,1740867045087,-1141.1,0.00024931,2]
[355012406,1740867045098,-674.63,0.00024931,2]
[355012407,1740867045109,-500.0,0.00024931,2]
[355012408,1740867045120,-500.0,0.00024931,2]